bitfinex/quotes_SOLUSD_20260310
["timestamp","ask_amount","ask_price","bid_price","bid_amount"]
[1773150838413,10.96764048,86.65,86.612,1.76434768]
[1773150838922,12.75027972,86.65,86.612,1.76434768]
[1773150839121,1.78263924,86.649,86.612,1.76434768]
[1773150839718,18.87171877,86.656,86.631,1.76434768]
[1773150840424,20.65435801,86.656,86.631,1.76434768]
[1773150840602,20.65435801,86.656,86.624,11.54407763]
[1773150840603,1.78263924,86.655,86.621,1.76434768]
[1773150840805,1.78263924,86.655,86.579,46.20008361]
[1773150840806,10.96764048,86.64,86.602,1.76434768]
[1773150841002,1.78263924,86.639,86.61,10.96764048]
[1773150841405,1.78263924,86.639,86.602,13.31142511]
[1773150841606,10.96764048,86.64,86.611,1.76434768]
[1773150841812,11.54347851,86.629,86.599,1.76434768]
[1773150842021,11.54347851,86.629,86.591,11.5485443]
[1773150842212,40.40217478,86.629,86.592,1.76434768]
[1773150842525,40.40217478,86.629,86.591,11.5485443]
[1773150842526,11.54214614,86.639,86.611,1.76434768]
[1773150842731,1.78263924,86.655,86.621,1.76434768]
[1773150842915,13.32265424,86.655,86.621,1.76434768]
[1773150843235,40.3900525,86.655,86.621,1.76434768]
[1773150843520,40.3900525,86.655,86.591,40.41990506]
[1773150843521,1.78263924,86.649,86.611,1.76434768]
[1773150843729,1.78263924,86.649,86.62,10.96764048]
[1773150843923,13.39558963,86.648,86.62,10.96764048]
[1773150844610,13.39558963,86.648,86.621,1.71494008]
[1773150845212,7.33181815,86.656,86.621,1.71494008]
[1773150845521,1.85464235,86.649,86.621,1.71494008]
[1773150845911,40.39331548,86.648,86.621,1.71494008]
[1773150846111,1.85464235,86.647,86.621,1.71494008]
[1773150846330,1.85464235,86.647,86.612,1.71494008]
[1773150846712,1.85464235,86.647,86.613,1.71494008]
[1773150848012,7.33181815,86.656,86.605,1.71494008]
[1773150848013,10.96764048,86.63,86.605,1.71494008]
[1773150848309,10.96764048,86.62,86.593,11.54823538]
[1773150848506,1.85464235,86.629,86.6,10.96764048]
[1773150848728,1.85464235,86.629,86.593,11.54823538]
[1773150848729,1.85464235,86.629,86.601,1.71494008]
[1773150848929,1.85464235,86.637,86.601,1.71494008]
[1773150849919,10.96764048,86.64,86.611,1.71494008]
[1773150850651,40.39518026,86.644,86.591,28.87136076]
[1773150850652,10.96764048,86.63,86.602,1.71494008]
[1773150850815,12.82228283,86.62,86.589,1.71494008]
[1773150851234,10.96764048,86.61,86.589,1.71494008]
[1773150851424,10.96764048,86.61,86.576,11.55050554]
[1773150851425,10.96764048,86.61,86.577,1.71494008]
[1773150851618,10.96764048,86.6,86.571,1.71494008]
[1773150852231,11.54747745,86.599,86.572,11.55107887]
[1773150852419,11.54747745,86.599,86.567,11.55162567]
[1773150852420,1.85464235,86.598,86.567,11.55162567]
[1773150852620,1.85464235,86.598,86.533,3.69383402]
[1773150852621,1.85464235,86.589,86.559,1.71494008]
[1773150852818,1.85464235,86.598,86.561,1.71494008]
[1773150853014,10.96764048,86.6,86.571,1.71494008]
[1773150853226,1.85464235,86.617,86.581,1.71494008]
[1773150853441,10.96764048,86.61,86.581,1.71494008]
[1773150853828,12.82228283,86.61,86.581,1.71494008]
[1773150854137,1.85464235,86.609,86.571,1.71494008]
[1773150854942,10.96764048,86.6,86.572,1.71494008]
[1773150855140,10.96764048,86.6,86.568,11.55156512]
[1773150855141,1.85464235,86.599,86.568,11.55156512]
[1773150855648,1.85464235,86.589,86.563,11.55225695]
[1773150855940,40.41197118,86.608,86.55,10.96764048]
[1773150855941,1.85464235,86.579,86.551,11.55388152]
[1773150856744,1.85464235,86.579,86.523,3.69383402]
[1773150856745,3.69383402,86.605,86.533,1.71494008]
[1773150857039,10.96764048,86.57,86.541,1.71494008]
[1773150857420,12.82228283,86.57,86.541,1.71494008]
[1773150857620,1.85464235,86.569,86.541,1.71494008]
[1773150857935,10.96764048,86.56,86.534,11.55615133]
[1773150858138,1.85464235,86.559,86.525,28.89333423]
[1773150858343,3.69383402,86.6,86.493,3.69383402]
[1773150858344,1.85464235,86.569,86.531,1.71494008]
[1773150858541,3.69383402,86.6,86.511,1.71494008]
[1773150858542,1.85464235,86.549,86.511,1.71494008]
[1773150858719,10.96764048,86.57,86.531,1.71494008]
[1773150858920,10.96764048,86.57,86.533,1.71494008]
[1773150858921,13.40612151,86.569,86.533,1.71494008]
[1773150859630,1.85464235,86.568,86.533,1.71494008]
[1773150860143,1.85464235,86.559,86.526,11.55720437]
[1773150860338,1.85464235,86.549,86.515,1.71494008]
[1773150860645,12.82228283,86.54,86.513,11.55895645]
[1773150860826,1.85464235,86.539,86.513,11.55895645]
[1773150861028,1.85464235,86.539,86.51,10.96764048]
[1773150861339,57.75739583,86.569,86.51,10.96764048]
[1773150861340,1.85464235,86.546,86.511,1.71494008]
[1773150861744,10.96764048,86.54,86.511,1.71494008]
[1773150862237,1.85464235,86.546,86.511,1.71494008]
[1773150862938,11.55548365,86.539,86.511,1.71494008]
[1773150863342,10.96764048,86.54,86.512,11.55909006]
[1773150863541,10.96764048,86.54,86.513,1.71494008]
[1773150863742,1.85464235,86.546,86.513,1.71494008]
[1773150864127,10.96764048,86.54,86.513,1.71494008]
[1773150864331,1.85464235,86.539,86.508,11.55957762]
[1773150865337,1.85464235,86.539,86.51,10.96764048]
[1773150865537,1.85464235,86.539,86.51,12.68258056]
[1773150865741,11.55561718,86.538,86.51,12.68258056]
[1773150865941,11.55561718,86.538,86.511,1.71494008]
[1773150866135,10.96764048,86.55,86.521,1.71494008]
[1773150866532,1.85464235,86.549,86.521,1.71494008]
[1773150866736,1.85464235,86.549,86.511,1.71494008]
[1773150867242,40.43484789,86.559,86.521,1.71494008]
[1773150867243,1.85464235,86.558,86.521,1.71494008]
[1773150867447,1.85464235,86.558,86.523,1.71494008]
[1773150867647,10.96764048,86.56,86.531,1.71494008]
[1773150867831,1.85464235,86.558,86.531,1.71494008]
[1773150868230,1.85464235,86.558,86.522,13.27269417]
[1773150868231,10.96764048,86.55,86.522,13.27269417]
[1773150868446,1.85464235,86.549,86.511,1.71494008]
[1773150868651,1.85464235,86.549,86.512,1.71494008]
[1773150868946,1.85464235,86.549,86.52,12.68258056]
[1773150869449,1.85464235,86.547,86.511,40.45728288]
[1773150869651,1.85464235,86.539,86.511,11.55922368]
[1773150871251,1.85464235,86.539,86.51,1.71494008]
[1773150871252,1.85464235,86.519,86.481,1.71494008]
[1773150871550,1.85464235,86.519,86.484,1.71494008]
[1773150871737,1.85464235,86.519,86.49,10.96764048]
[1773150871938,1.85464235,86.528,86.491,1.71494008]
[1773150872950,11.55575071,86.537,86.501,1.71494008]
[1773150873152,1.85464235,86.529,86.501,1.71494008]
[1773150873654,10.99754855,86.53,86.503,1.83547752]
[1773150873861,11.55588425,86.536,86.503,1.83547752]
[1773150874063,3.69383402,86.561,86.502,40.46149221]
[1773150874064,13.4370947,86.556,86.521,1.83547752]
[1773150874236,10.99754855,86.56,86.531,1.83547752]
[1773150874441,11.55262133,86.561,86.531,1.83547752]
[1773150874442,11.55227984,86.563,86.531,1.83547752]
[1773150874643,10.99754855,86.56,86.531,1.83547752]
[1773150874848,11.55227984,86.563,86.531,1.83547752]
[1773150875955,11.55227984,86.563,86.502,98.26362395]
[1773150875956,11.55227984,86.563,86.54,10.99754855]
[1773150876140,11.55227984,86.563,86.533,1.83547752]
[1773150877437,11.55176618,86.567,86.533,1.83547752]
[1773150878562,11.55176618,86.567,86.535,1.83547752]
[1773150879353,11.55176618,86.567,86.541,1.83547752]
[1773150879662,11.55080798,86.575,86.551,1.83547752]
[1773150880443,11.55080798,86.575,86.54,10.99754855]
[1773150880444,11.55080798,86.575,86.541,1.83547752]
[1773150880652,10.99754855,86.57,86.543,1.83547752]
[1773150880852,11.55080798,86.575,86.543,1.83547752]
[1773150882851,11.55080798,86.575,86.551,1.83547752]
[1773150883444,10.99754855,86.59,86.561,1.83547752]
[1773150883638,11.54933247,86.586,86.561,1.83547752]
[1773150883957,10.99754855,86.58,86.551,1.83547752]
[1773150884549,1.88387541,86.579,86.551,1.83547752]
[1773150884750,10.99754855,86.58,86.511,46.23640537]
[1773150884751,1.88387541,86.577,86.545,1.83547752]
[1773150884949,1.88387541,86.577,86.549,11.55407302]
[1773150885243,1.88387541,86.577,86.551,1.83547752]
[1773150885766,1.88387541,86.585,86.551,1.83547752]
[1773150886361,4.10112888,86.58,86.551,1.83547752]
[1773150886664,1.87873377,86.58,86.551,1.83547752]
[1773150886859,46.17594265,86.626,86.509,46.23743685]
[1773150886860,13.4265727,86.597,86.57,5.94318903]
[1773150887064,42.29593307,86.597,86.57,1.84206015]
[1773150887244,4.10112888,86.59,86.561,1.84206015]
[1773150887640,1.87873377,86.589,86.561,1.84206015]
[1773150887845,1.87873377,86.589,86.528,62.8]
[1773150887846,1.87873377,86.579,86.547,1.84206015]
[1773150888252,1.87873377,86.579,86.53,28.89153069]
[1773150888253,1.87873377,86.569,86.531,1.84206015]
[1773150888749,1.87873377,86.558,86.531,1.84206015]
[1773150888958,1.87873377,86.558,86.531,13.39856123]
[1773150889164,1.87873377,86.558,86.531,1.84206015]
[1773150889647,1.87873377,86.558,86.532,11.55641843]
[1773150889849,1.87873377,86.558,86.532,13.39847858]
[1773150890151,4.10112888,86.55,86.528,11.55695227]
[1773150891765,1.87873377,86.539,86.511,1.84206015]
[1773150892745,1.87873377,86.548,86.511,1.84206015]
[1773150893064,4.10112888,86.6,86.521,1.84206015]
[1773150893065,1.87873377,86.557,86.521,1.84206015]
[1773150893743,1.87873377,86.557,86.523,1.84206015]
[1773150893744,11.5532141,86.556,86.523,1.84206015]
[1773150894163,1.87873377,86.557,86.523,1.84206015]
[1773150895257,1.87873377,86.557,86.522,40.45213933]
[1773150895258,11.5532141,86.556,86.525,1.84206015]
[1773150895674,4.10112888,86.55,86.525,1.84206015]
[1773150896058,1.87873377,86.549,86.513,13.4010166]
[1773150896371,11.5532141,86.556,86.513,13.4010166]
[1773150896372,4.10112888,86.54,86.513,13.4010166]
[1773150897177,1.87873377,86.538,86.513,11.55895645]
[1773150897873,11.55494151,86.544,86.514,1.84206015]
[1773150898175,4.10112888,86.54,86.514,1.84206015]
[1773150898870,4.10112888,86.53,86.506,1.84206015]
[1773150899057,1.87873377,86.529,86.497,1.84206015]
[1773150899266,1.87873377,86.529,86.497,13.40305544]
[1773150899267,4.10112888,86.52,86.497,13.40305544]
[1773150899468,4.10112888,86.52,86.48,4.30112888]
[1773150899469,1.87873377,86.509,86.48,0.2]
[1773150899774,40.45354199,86.519,86.48,0.2]
[1773150899775,5.97986265,86.5,86.48,0.2]
[1773150899977,40.45354199,86.519,86.481,1.84206015]
[1773150899978,1.87873377,86.508,86.481,1.84206015]
[1773150900163,13.43688862,86.519,86.482,1.84206015]
[1773150900773,13.43688862,86.519,86.481,40.47131739]
[1773150900774,1.87873377,86.527,86.49,4.10112888]
[1773150901079,1.87873377,86.529,86.491,1.84206015]
[1773150901261,11.55695266,86.528,86.492,11.56176293]
[1773150901462,1.87873377,86.527,86.493,1.84206015]
[1773150901663,46.21046456,86.561,86.501,1.84206015]
[1773150901664,28.88888193,86.539,86.501,1.84206015]
[1773150901868,1.87873377,86.529,86.501,1.84206015]
[1773150902175,1.87873377,86.519,86.492,11.56176293]
[1773150902676,1.87873377,86.519,86.489,1.84206015]
[1773150903071,4.10112888,86.51,86.48,11.76328235]
[1773150903376,46.21860788,86.546,86.48,11.76328235]
[1773150903377,1.87873377,86.517,86.482,11.56309983]
[1773150903673,1.87873377,86.517,86.483,1.84206015]
[1773150904073,11.55828844,86.518,86.48,0.2]
[1773150904074,1.79942813,86.509,86.48,0.2]
[1773150904259,1.79942813,86.489,86.441,1.73214798]
[1773150904468,3.69383402,86.515,86.441,1.73214798]
[1773150904469,4.10112888,86.47,86.441,1.73214798]
[1773150904864,3.69383402,86.515,86.44,0.2]
[1773150904865,1.79942813,86.479,86.448,1.73214798]
[1773150905062,4.10112888,86.47,86.444,11.56806916]
[1773150905263,4.10112888,86.48,86.457,11.5664284]
[1773150905567,3.69383402,86.511,86.441,1.73214798]
[1773150905568,4.10112888,86.47,86.441,1.73214798]
[1773150905770,1.79942813,86.469,86.44,0.2]
[1773150905960,4.10112888,86.46,86.44,0.2]
[1773150906156,4.10112888,86.48,86.45,5.83327686]
[1773150906375,4.10112888,86.48,86.451,1.73214798]
[1773150906555,4.10112888,86.49,86.461,1.73214798]
[1773150906963,4.10112888,86.49,86.441,40.49004523]
[1773150906964,4.10112888,86.48,86.451,1.73214798]
[1773150907167,4.10112888,86.47,86.441,13.30073233]
[1773150907666,11.0136015,86.47,86.442,1.73214798]
[1773150907865,11.56410788,86.475,86.442,1.73214798]
[1773150908084,28.90554133,86.489,86.451,1.73214798]
[1773150908085,1.79942813,86.489,86.451,1.73214798]
[1773150908673,1.79942813,86.504,86.461,1.73214798]
[1773150908884,11.0136015,86.5,86.471,1.73214798]
[1773150909070,1.79942813,86.504,86.471,1.73214798]
[1773150909397,11.0136015,86.5,86.471,1.73214798]
[1773150909692,104.005972,86.534,86.46,11.0136015]
[1773150909693,11.55858584,86.516,86.49,11.0136015]
[1773150909976,11.55858584,86.516,86.481,1.73214798]
[1773150910183,11.0136015,86.51,86.481,1.73214798]
[1773150910387,11.55858584,86.516,86.481,1.73214798]
[1773150910676,13.35801397,86.516,86.481,1.73214798]
[1773150911176,1.79942813,86.515,86.481,1.73214798]
[1773150911579,11.55858584,86.516,86.472,11.56443704]
[1773150911580,11.56082729,86.499,86.472,11.56443704]
[1773150911785,11.56082729,86.499,86.47,11.0136015]
[1773150911786,11.0136015,86.48,86.451,11.56724618]
[1773150911989,11.0136015,86.48,86.44,11.2136015]
[1773150911990,11.0136015,86.47,86.441,11.56858435]
[1773150912192,11.0136015,86.46,86.44,0.2]
[1773150912364,86.70620469,86.499,86.4,0.2]
[1773150912365,11.0136015,86.45,86.418,1.73214798]
[1773150912565,11.0136015,86.45,86.422,13.30321324]
[1773150912786,11.0136015,86.46,86.431,1.73214798]
[1773150913195,11.0136015,86.46,86.422,11.57106526]
[1773150913196,1.79942813,86.46,86.422,11.57106526]
[1773150913486,11.0136015,86.45,86.422,11.57106526]
[1773150913679,11.0136015,86.45,86.423,1.73214798]
[1773150914298,11.56751379,86.449,86.423,1.73214798]
[1773150914461,11.56751379,86.449,86.418,11.57162372]
[1773150915000,11.0136015,86.45,86.419,1.73214798]
[1773150915292,11.0136015,86.44,86.418,11.57162372]
[1773150915468,1.79942813,86.448,86.418,11.57162372]
[1773150915669,11.56885202,86.439,86.414,11.57216998]
[1773150916479,13.3672037,86.448,86.415,1.73214798]
[1773150917162,1.79942813,86.448,86.415,1.73214798]
[1773150917567,1.79942813,86.448,86.416,11.57193112]
[1773150917869,1.79942813,86.448,86.417,1.73214798]
[1773150918280,11.0136015,86.44,86.417,1.73214798]
[1773150918486,11.56778141,86.447,86.417,1.73214798]
[1773150918672,1.79942813,86.448,86.417,1.73214798]
[1773150919289,1.79942813,86.448,86.416,40.50175892]
[1773150919290,11.0136015,86.44,86.416,11.57193112]
[1773150919472,1.79942813,86.439,86.416,11.57193112]
[1773150919671,46.25456372,86.478,86.4,11.2136015]
[1773150919672,1.79942813,86.464,86.412,1.73214798]
[1773150919875,46.2345459,86.516,86.421,1.73214798]
[1773150919876,11.0136015,86.45,86.421,1.73214798]
[1773150920488,11.56483826,86.469,86.431,1.73214798]
[1773150920489,11.0136015,86.46,86.431,1.73214798]
[1773150920691,13.36426639,86.469,86.431,1.73214798]
[1773150921172,1.79942813,86.469,86.44,1.73214798]
[1773150921374,1.79942813,86.469,86.43,11.0136015]
[1773150921375,1.79942813,86.468,86.431,1.73214798]
[1773150921581,1.79942813,86.449,86.414,1.73214798]
[1773150921788,11.5678465,86.447,86.416,1.73214798]
[1773150921983,1.79942813,86.449,86.42,11.0136015]
[1773150921984,13.36700834,86.449,86.42,11.0136015]
[1773150922491,13.36700834,86.449,86.418,1.73214798]
[1773150922688,1.79942813,86.448,86.418,1.73214798]
[1773150923072,11.0136015,86.44,86.418,1.73214798]
[1773150923267,11.0136015,86.44,86.4,0.2]
[1773150923268,1.79942813,86.429,86.401,11.57394011]
[1773150923468,1.79942813,86.429,86.342,46.32686741]
[1773150923469,1.79942813,86.409,86.37,11.2136015]
[1773150923687,11.0136015,86.4,86.371,11.57796019]
[1773150923889,11.0136015,86.4,86.372,1.73214798]
[1773150924071,11.57300249,86.408,86.372,1.73214798]
[1773150924279,11.0136015,86.4,86.372,1.73214798]
[1773150924774,11.0136015,86.39,86.371,11.57796019]
[1773150925293,11.0136015,86.39,86.37,0.2]
[1773150925495,11.0136015,86.39,86.35,40.06550624]
[1773150925496,12.81302963,86.38,86.35,1.83214798]
[1773150925677,86.79751872,86.408,86.363,1.73214798]
[1773150925678,11.57420803,86.399,86.363,1.73214798]
[1773150925993,11.0136015,86.39,86.363,1.73214798]
[1773150926374,11.0136015,86.39,86.362,11.57916676]
[1773150926581,12.81302963,86.39,86.362,11.57916676]
[1773150926787,1.79942813,86.389,86.357,11.57976811]
[1773150926971,1.79942813,86.379,86.35,0.1]
[1773150927173,1.79942813,86.379,86.34,11.1136015]
[1773150927174,11.0136015,86.36,86.34,0.1]
[1773150927393,1.79942813,86.369,86.341,11.58198306]
[1773150927577,11.0136015,86.37,86.341,13.31413104]
[1773150927889,40.50972811,86.399,86.33,0.1]
[1773150927890,1.79942813,86.349,86.33,0.1]
[1773150928471,1.79942813,86.349,86.32,0.1]
[1773150928472,11.0136015,86.34,86.32,0.1]
[1773150929191,1.79942813,86.349,86.32,0.1]
[1773150929594,12.81302963,86.34,86.32,0.1]
[1773150929775,1.79942813,86.339,86.32,0.1]
[1773150929974,1.79942813,86.359,86.32,1.83214798]
[1773150930300,11.0136015,86.35,86.321,1.73214798]
[1773150930588,11.57970309,86.358,86.321,1.73214798]
[1773150930589,40.52896083,86.358,86.321,1.73214798]
[1773150930796,11.57970309,86.358,86.321,1.73214798]
[1773150930992,11.0136015,86.35,86.321,1.73214798]
[1773150931176,11.57970309,86.358,86.321,1.73214798]
[1773150931377,11.0136015,86.35,86.321,1.73214798]
[1773150931773,11.57970309,86.358,86.321,1.73214798]
[1773150931980,1.79942813,86.369,86.34,11.0136015]
[1773150932196,46.27998334,86.431,86.36,11.0136015]
[1773150932197,22.58908111,86.39,86.36,11.0136015]
[1773150932792,11.57450407,86.397,86.361,1.73214798]
[1773150932998,1.79942813,86.404,86.37,11.0136015]
[1773150932999,11.57420803,86.399,86.37,11.0136015]
[1773150933195,11.0136015,86.41,86.38,11.0136015]
[1773150933196,12.81302963,86.41,86.38,11.0136015]
[1773150933395,11.0136015,86.41,86.38,12.74574948]
[1773150933605,11.0136015,86.41,86.371,1.76613411]
[1773150933787,11.0136015,86.41,86.38,11.0136015]
[1773150933984,11.0136015,86.41,86.371,1.76613411]
[1773150933985,1.85270009,86.408,86.371,1.76613411]
[1773150934306,11.0136015,86.39,86.361,1.76613411]
[1773150934801,11.0136015,86.39,86.36,11.0136015]
[1773150935586,1.85270009,86.399,86.361,1.76613411]
[1773150935893,40.50503997,86.409,86.345,28.95361075]
[1773150935894,11.57286856,86.409,86.381,1.76613411]
[1773150936089,11.57286856,86.409,86.38,11.03249023]
[1773150936090,1.85270009,86.428,86.383,1.76613411]
[1773150936289,92.51394386,86.474,86.401,1.76613411]
[1773150936290,11.56927794,86.436,86.401,1.76613411]
[1773150936602,11.56927794,86.436,86.382,40.51770044]
[1773150936603,11.03249023,86.44,86.411,1.76613411]
[1773150936985,46.25651628,86.475,86.382,98.40012964]
[1773150936986,11.03249023,86.46,86.43,11.03249023]
[1773150937201,22.59861036,86.46,86.43,11.03249023]
[1773150937380,22.59861036,86.46,86.421,1.76613411]
[1773150937586,1.85270009,86.459,86.421,1.76613411]
[1773150938288,11.03249023,86.45,86.42,11.03249023]
[1773150938495,1.85270009,86.457,86.413,1.76613411]
[1773150938695,11.03249023,86.45,86.42,11.03249023]
[1773150938889,1.85270009,86.439,86.402,1.76613411]
[1773150939880,11.03249023,86.43,86.402,13.339816]
[1773150940497,46.26196021,86.465,86.402,13.339816]
[1773150940498,11.03249023,86.45,86.421,1.76613411]
[1773150941095,40.47131739,86.481,86.431,1.76613411]
[1773150941096,11.03249023,86.46,86.431,1.76613411]
[1773150941293,11.03249023,86.46,86.43,11.03249023]
[1773150941694,11.03249023,86.45,86.421,1.76613411]
[1773150941906,11.03249023,86.46,86.421,1.76613411]
[1773150942094,1.85270009,86.459,86.421,1.76613411]
[1773150942410,11.56630965,86.458,86.422,11.57112772]
[1773150942595,11.56630965,86.458,86.43,11.03249023]
[1773150943613,11.56630965,86.458,86.422,13.33726183]
[1773150943908,1.85270009,86.457,86.422,13.33726183]
[1773150944097,12.88519032,86.45,86.42,11.03249023]
[1773150944424,11.56630965,86.458,86.401,1.76613411]
[1773150944425,1.85270009,86.439,86.401,1.76613411]
[1773150944589,11.57019056,86.429,86.401,1.76613411]
[1773150944995,30.77498972,86.439,86.402,11.57380616]
[1773150945197,11.56898586,86.438,86.403,1.76613411]
[1773150945701,46.25483921,86.478,86.402,11.57380616]
[1773150945702,11.03249023,86.46,86.43,12.79862434]
[1773150945895,1.85270009,86.469,86.43,12.79862434]
[1773150946309,11.03249023,86.47,86.44,12.79862434]
[1773150946507,11.56350096,86.479,86.441,13.36443191]
[1773150946687,11.56350096,86.479,86.442,1.79584756]
[1773150946889,11.03249023,86.46,86.433,1.79584756]
[1773150947092,1.78363936,86.47,86.433,1.79584756]
[1773150947093,1.78363936,86.469,86.433,1.79584756]
[1773150947394,11.03249023,86.47,86.44,11.03249023]
[1773150947695,11.03249023,86.47,86.433,1.79584756]
[1773150947890,11.03249023,86.47,86.44,11.03249023]
[1773150948609,12.81612959,86.46,86.423,1.79584756]
[1773150948913,12.81612959,86.46,86.42,11.03249023]
[1773150948914,11.03249023,86.45,86.413,1.79584756]
[1773150949306,11.03249023,86.44,86.401,11.57394011]
[1773150949508,11.03249023,86.44,86.402,1.79584756]
[1773150949812,11.03249023,86.44,86.41,11.03249023]
[1773150950013,86.73628698,86.469,86.41,11.03249023]
[1773150950014,11.03249023,86.45,86.411,1.79584756]
[1773150950392,11.03249023,86.45,86.349,1.79584756]
[1773150950393,1.78363936,86.419,86.349,1.79584756]
[1773150950595,1.78363936,86.417,86.382,11.57648584]
[1773150951014,1.78363936,86.417,86.383,1.79584756]
[1773150951316,1.78363936,86.417,86.381,1.79584756]
[1773150951613,11.57166331,86.418,86.39,11.03249023]
[1773150951792,11.57166331,86.418,86.381,1.79584756]
[1773150952200,11.03249023,86.41,86.381,1.79584756]
[1773150952915,11.03249023,86.41,86.383,1.79584756]
[1773150953818,11.03249023,86.41,86.375,1.79584756]
[1773150954113,40.50367328,86.412,86.375,1.79584756]
[1773150954114,11.03249023,86.4,86.375,1.79584756]
[1773150954307,11.03249023,86.41,86.375,1.79584756]
[1773150954620,11.03249023,86.4,86.368,11.57836222]
[1773150955018,3.69383402,86.43,86.362,11.57916676]
[1773150955019,11.03249023,86.39,86.362,11.57916676]
[1773150955324,11.03249023,86.39,86.362,13.37501432]
[1773150955917,1.78363936,86.398,86.363,1.79584756]
[1773150956218,11.03249023,86.39,86.353,13.37615777]
[1773150956402,11.03249023,86.39,86.354,1.79584756]
[1773150956801,11.03249023,86.37,86.348,11.58102661]
[1773150957104,11.03249023,86.37,86.34,11.03249023]
[1773150957311,1.78363936,86.373,86.34,11.03249023]
[1773150958023,13.36140101,86.373,86.34,11.03249023]
[1773150958413,1.78363936,86.359,86.3,0.1]
[1773150958618,1.78363936,86.359,86.32,11.13249023]
[1773150959009,11.03249023,86.37,86.331,1.79584756]
[1773150959510,1.78363936,86.368,86.331,1.79584756]
[1773150960025,11.03249023,86.34,86.32,0.1]
[1773150960414,1.78363936,86.349,86.32,11.68471668]
[1773150960610,11.03249023,86.34,86.32,11.68471668]
[1773150960816,1.78363936,86.349,86.32,11.68478336]
[1773150961024,3.69383402,86.38,86.32,0.1]
[1773150961025,11.03249023,86.34,86.32,0.1]
[1773150961328,1.78363936,86.329,86.3,0.1]
[1773150961514,11.03249023,86.32,86.3,0.1]
[1773150961908,40.5336545,86.348,86.301,1.79584756]
[1773150961909,1.78363936,86.339,86.301,1.79584756]
[1773150962225,11.58104414,86.348,86.311,1.79584756]
[1773150962424,11.58104414,86.348,86.3,40.65617956]
[1773150962425,11.03249023,86.33,86.3,11.68746578]
[1773150962615,1.78363936,86.329,86.3,0.1]
[1773150962811,11.03249023,86.32,86.3,0.1]
[1773150963028,1.78363936,86.329,86.3,11.13249023]
[1773150963228,1.78363936,86.328,86.3,0.1]
[1773150963825,11.03249023,86.33,86.3,0.1]
[1773150964028,1.91895753,86.361,86.321,1.81715225]
[1773150964208,11.03249023,86.36,86.321,1.81715225]
[1773150964534,1.91895753,86.37,86.331,1.81715225]
[1773150964742,1.91895753,86.37,86.3,0.1]
[1773150964743,1.91895753,86.37,86.341,1.81715225]
[1773150965032,11.58104414,86.348,86.312,11.5858745]
[1773150965330,11.58104414,86.348,86.3,0.1]
[1773150965331,11.03249023,86.33,86.303,11.58708272]
[1773150965735,1.91895753,86.339,86.304,1.81715225]
[1773150965946,11.03249023,86.34,86.304,1.81715225]
[1773150966231,11.03249023,86.34,86.303,40.55478952]
[1773150966232,11.03249023,86.35,86.311,1.81715225]
[1773150966431,11.58091002,86.349,86.311,1.81715225]
[1773150966810,11.5800499,86.356,86.321,1.81715225]
[1773150967314,11.03249023,86.35,86.322,11.58453233]
[1773150967706,11.03249023,86.35,86.322,13.40168458]
[1773150968533,12.95144776,86.35,86.312,1.81715225]
[1773150968721,1.91895753,86.349,86.312,1.81715225]
[1773150968922,11.03249023,86.34,86.312,1.81715225]
[1773150969115,11.03249023,86.33,86.301,1.81715225]
[1773150969312,11.03249023,86.33,86.3,0.1]
[1773150969313,1.91895753,86.329,86.3,0.1]
[1773150969513,11.03249023,86.32,86.3,0.1]
[1773150970330,11.03249023,86.31,86.291,11.58869407]
[1773150970945,1.91895753,86.319,86.291,11.58869407]
[1773150971434,11.03249023,86.31,86.291,11.58869407]
[1773150971733,11.03249023,86.31,86.283,1.81715225]
[1773150972139,11.58555911,86.315,86.283,1.81715225]
[1773150972538,13.50451664,86.315,86.283,1.81715225]
[1773150972717,1.91895753,86.299,86.28,0.1]
[1773150972919,11.03249023,86.29,86.28,0.1]
[1773150973145,1.91895753,86.299,86.28,0.1]
[1773150975220,11.58714106,86.303,86.28,0.1]
[1773150975934,11.03249023,86.3,86.28,0.1]
[1773150976231,11.03249023,86.32,86.281,1.81715225]
[1773150977028,1.91895753,86.328,86.291,1.81715225]
[1773150977441,11.03249023,86.32,86.291,1.81715225]
[1773150977646,1.91895753,86.309,86.281,11.5900372]
[1773150978228,11.03249023,86.32,86.291,1.81715225]
[1773150978537,1.91895753,86.331,86.301,1.81715225]
[1773150978538,11.58361601,86.329,86.301,1.81715225]
[1773150979129,11.03249023,86.32,86.292,1.81715225]
[1773150979344,1.91895753,86.328,86.292,1.81715225]
[1773150980138,1.91895753,86.309,86.281,11.5900372]
[1773150981246,11.03249023,86.31,86.282,1.81715225]
[1773150981749,11.03249023,86.32,86.291,1.81715225]
[1773150981952,1.91895753,86.319,86.291,1.81715225]
[1773150982249,1.91895753,86.319,86.292,40.5599592]
[1773150982563,11.03249023,86.32,86.292,40.5599592]
[1773150982564,11.03249023,86.32,86.293,1.81715225]
[1773150983352,1.91895753,86.339,86.301,1.81715225]
[1773150983531,11.03249023,86.33,86.301,1.81715225]
[1773150983842,1.91895753,86.339,86.301,1.81715225]
[1773150984351,6.05032722,86.385,86.281,46.35979724]